[Event "Super United Croatia GCT Rapid 2022"]
[Site "Zagreb"]
[Date "2022.07.20"]
[Round "3.1"]
[White "Carlsen, Magnus"]
[Black "Vachier-Lagrave, Maxime"]
[Result "1/2-1/2"]
[ECO "B23"]
[WhiteElo "2864"]
[BlackElo "2760"]
[Annotator "TA"]
[PlyCount "38"]
[EventDate "2022.07.20"]
[EventType "tourn"]
[EventCountry "CRO"]
[SourceTitle "playchess.com"]
[Source "ChessBase"]
[SourceQuality "1"]
[TimeControl "1500+10"]

{[%evp 9,38,0,0,-14,35,40,52,43,57,0,0,0,0,0,0,0,0,0,0,0,0,0,0,0,0,0,0,0,0,0,0]} 1. e4 {[%emt 0:00:18]} c5 {[%emt 0:00:02]} 2. Nc3 {[%emt 0:00:02]} d6 {[%emt 0:00:01]} 3. d4 {[%emt 0:00:02]} cxd4 {[%emt 0:00:02]} 4. Qxd4 {[%emt 0:00:03]} Nc6 {[%emt 0:00:03]} 5. Qd2 {[%emt 0:00:02]} e6 {[%emt 0:00:12]} 6. b3 {[%emt 0:00:56] B23: Closed Sicilian: Lines without g3.} d5 {[%emt 0:00:01]} (6... Nf6 $11 {was preferrable.}) 7. exd5 $14 {[%emt 0:02:25]} exd5 {[%emt 0:00:02] [#]} 8. Qxd5 $146 {[%emt 0:01:30] White is slightly better.} ({Predecessor:} 8. a3 Nf6 9. Bb2 d4 10. Nce2 Bc5 11. Nf3 O-O 12. Nexd4 Ne4 13. Qd3 Qa5+ 14. b4 Nxb4 15. axb4 Qxb4+ 16. Bc3 Nxc3 17. Be2 Re8 18. O-O Bxd4 19. Nxd4 Qxd4 {0-1 (19) Yang,K (2481)-Matlakov,M (2674) Chess.com INT 2022}) 8... Qf6 {[%emt 0:01:05]} 9. Bb2 {[%emt 0:02:01]} (9. Qd2 $1 $14) 9... Ba3 $1 $11 {[%emt 0:05:19] The position is equal.} 10. O-O-O {[%emt 0:00:08]} Qxc3 $1 {[%emt 0:00:01]} 11. Bxa3 {[%emt 0:00:03] [#] Bb2 is the strong threat. Chess con chili.} Nf6 $1 {[%emt 0:00:02]} 12. Qc4 {[%emt 0:05:10]} Qa1+ {[%emt 0:00:27]} 13. Kd2 {[%emt 0:00:04]} Qxa2 {[%emt 0:00:02]} (13... Qe5 $2 14. Re1 Be6 {[#]} 15. Qxc6+ $3 {[%mdl 512]} bxc6 16. Rxe5 $18) 14. Re1+ {[%emt 0:00:20]} Be6 {[%emt 0:00:02]} 15. Rxe6+ {[%emt 0:00:13]} fxe6 {[%emt 0:00:02]} 16. Qxe6+ {[%emt 0:00:02]} Kd8 {[%emt 0:00:02]} 17. Qd6+ {[%emt 0:00:09]} Ke8 {[%emt 0:01:21]} 18. Qe6+ {[%emt 0:00:14]} Kd8 {[%emt 0:00:01]} 19. Qd6+ {[%emt 0:00:08]} Ke8 {[%emt 0:00:02] Weighted Error Value: White=0.10 (very precise) /Black=0.05 (flawless)} 1/2-1/2

[Event "Super United Croatia GCT Rapid 2022"]
[Site "Zagreb"]
[Date "2022.07.20"]
[Round "3.2"]
[White "Firouzja, Alireza"]
[Black "Topalov, Veselin"]
[Result "1-0"]
[ECO "C42"]
[WhiteElo "2793"]
[BlackElo "2728"]
[Annotator "TA"]
[PlyCount "59"]
[EventDate "2022.07.20"]
[EventType "tourn"]
[EventCountry "CRO"]
[SourceTitle "playchess.com"]
[Source "ChessBase"]
[SourceQuality "1"]
[TimeControl "1500+10"]

{[%evp 18,59,22,25,22,9,10,-10,4,0,112,106,141,137,217,120,157,90,90,90,90,90,93,68,70,73,73,69,62,66,100,100,91,89,97,103,131,127,156,137,382,370,381,375]} 1. e4 {[%emt 0:00:01]} e5 {[%emt 0:00:14]} 2. Nf3 {[%emt 0:00:01]} Nf6 {[%emt 0:00:03]} 3. Nxe5 {[%emt 0:00:24]} d6 {[%emt 0:00:03]} 4. Nf3 {[%emt 0:00:01]} Nxe4 {[%emt 0:00:02]} 5. d4 {[%emt 0:00:02]} d5 {[%emt 0:00:02]} 6. Bd3 {[%emt 0:00:02]} Bd6 {[%emt 0:00:05]} 7. O-O {[%emt 0:00:18]} O-O {[%emt 0:00:02]} 8. c4 {[%emt 0:00:05]} c6 {[%emt 0:00:01]} 9. Re1 {[%emt 0:00:20]} Bf5 {[%emt 0:03:05]} 10. Qb3 {[%emt 0:00:02]} Qd7 {[%emt 0:00:05] C42: Petroff Defence: 3 Nxe5 and unusual White 3rd moves.} 11. c5 {[%emt 0:00:02]} Bc7 {[%emt 0:00:28]} 12. Nc3 {[%emt 0:00:02][%cal Rc3e4]} Re8 {[%emt 0:05:32] [#] The position is equal.} (12... Nxc5 $5 13. Bxf5 Nxb3 14. Bxd7 Nxa1 $11) 13. g3 $146 {[%emt 0:05:16]} ({Predecessor:} 13. Be3 Na6 14. Ne2 f6 15. a3 g5 16. Qc2 h5 17. Rad1 h4 18. Nd2 Qh7 19. Nxe4 Bxe4 20. Bxe4 Qxe4 21. Qxe4 Rxe4 {½-½ (33) Giri,A (2772)-Vidit,S (2727) Wijk aan Zee 2022}) 13... Ba5 {[%emt 0:07:49]} (13... b6 $11) 14. Bf4 $16 {[%emt 0:00:48]} Bxc3 {[%emt 0:03:59]} 15. bxc3 {[%emt 0:00:02] Black must now prevent Ne5.} f6 {[%emt 0:00:03] [#] Inhibits Ne5.} (15... Be6 $16 16. Ne5 (16. Bxe4 dxe4 17. Ne5 Qc8 $14) 16... Qc8) 16. c4 {[%emt 0:00:14]} ({White should play} 16. Nh4 $1 $18 {[%cal Rh4f5]} Be6 17. f3) 16... Be6 {[%emt 0:00:36]} 17. Bxe4 {[%emt 0:00:15]} (17. Rab1 $142) 17... dxe4 {[%emt 0:00:02]} 18. Rxe4 {[%emt 0:00:02][%cal Od4d5] And now d5! would win.} Na6 {[%emt 0:00:23]} 19. Rae1 {[%emt 0:00:03]} Bf7 {[%emt 0:00:05]} 20. Bd6 {[%emt 0:01:01] [#] Hoping for Re7. 0x0.001f237e564adp-1022s more active pieces.} Rxe4 {[%emt 0:01:01]} 21. Rxe4 {[%emt 0:00:02] Strongly threatening Re7.} Re8 {[%emt 0:00:21] Prevents Re7.} 22. Rxe8+ Qxe8 {[%emt 0:00:01]} 23. Bf4 $36 {[%emt 0:01:42][%mdl 2048] White is more active.} h6 {[%emt 0:01:15]} 24. Be3 {[%emt 0:00:30]} (24. Nd2 {looks sharper.} Qe7 25. Be3 Kh7 26. Kg2) 24... Qd7 {[%emt 0:00:16]} 25. Nd2 {[%emt 0:00:06]} Bg6 {[%emt 0:00:28]} 26. f3 {[%emt 0:00:06]} f5 {[%emt 0:00:37]} 27. Qb2 {[%emt 0:00:19]} Kh7 {[%emt 0:00:18]} 28. Bf4 {[%emt 0:00:11]} b6 $2 {[%emt 0:00:13]} (28... Nc7 $16 {keeps fighting.} 29. Bd6 Ne8) 29. cxb6 $18 {[%emt 0:00:10]} axb6 {[%emt 0:00:01]} 30. Qxb6 {[%emt 0:00:05] Weighted Error Value: White=0.13 (very precise) /Black=0.39} 1-0

[Event "Super United Croatia GCT Rapid 2022"]
[Site "Zagreb"]
[Date "2022.07.20"]
[Round "3.3"]
[White "Mamedyarov, Shakhriyar"]
[Black "Nepomniachtchi, Ian"]
[Result "1-0"]
[ECO "B14"]
[WhiteElo "2759"]
[BlackElo "2766"]
[Annotator "TA"]
[PlyCount "83"]
[EventDate "2022.07.20"]
[EventType "tourn"]
[EventCountry "CRO"]
[SourceTitle "playchess.com"]
[Source "ChessBase"]
[SourceQuality "1"]
[TimeControl "1500+10"]

{[%evp 14,83,10,3,3,4,0,3,12,8,31,13,32,31,26,0,0,17,49,31,50,33,42,43,50,50,40,32,52,63,52,28,39,0,22,18,15,5,84,79,87,85,96,78,68,79,110,110,133,119,166,146,229,231,232,242,269,273,252,252,274,253,707,718,1513,1420,29973,29975,29972,29973,29980,29981]} 1. d4 {[%emt 0:00:01]} Nf6 {[%emt 0:00:01]} 2. c4 {[%emt 0:00:01]} e6 {[%emt 0:00:02]} 3. Nf3 {[%emt 0:00:02]} d5 {[%emt 0:00:01]} 4. Nc3 {[%emt 0:00:03]} c5 {[%emt 0:00:01]} 5. e3 {[%emt 0:00:01]} Nc6 {[%emt 0:00:02]} 6. cxd5 {[%emt 0:00:05]} exd5 {[%emt 0:00:02]} 7. Bb5 {[%emt 0:00:01]} cxd4 {[%emt 0:00:04]} 8. exd4 {[%emt 0:00:02]} Bd6 {[%emt 0:00:21] B14: Caro-Kann: Panov-Botvinnik Attack with 5...e6 and 5...g6.} 9. O-O {[%emt 0:00:05]} O-O {[%emt 0:00:02]} 10. Bg5 {[%emt 0:00:08]} Bg4 {[%emt 0:00:12] The position is equal.} 11. Be2 {[%emt 0:00:05]} Be6 {[%emt 0:00:24] 11...h6 is the recent fashion.} 12. Re1 {[%emt 0:00:19]} h6 {[%emt 0:00:13]} 13. Bh4 {[%emt 0:00:03]} Re8 {[%emt 0:00:02] [#]} 14. Bb5 $146 {[%emt 0:00:30]} ({Predecessor:} 14. Qb3 Na5 15. Qa4 a6 16. Ne5 b5 17. Qd1 Be7 18. Bf3 Bb4 19. Rc1 g5 20. Bg3 Rc8 21. Qd3 {0-1 (44) Ikejiri,D (1961)-Tharushi,T (1712) Chess.com INT 2021}) 14... g5 {[%emt 0:00:37]} 15. Bg3 {[%emt 0:00:30]} Bxg3 {[%emt 0:00:03]} 16. hxg3 {[%emt 0:00:01]} Bg4 {[%emt 0:00:05]} 17. Bxc6 {[%emt 0:00:54]} bxc6 {[%emt 0:00:13]} 18. Qd3 {[%emt 0:00:14]} Bxf3 {[%emt 0:00:09]} 19. gxf3 {[%emt 0:00:03]} Qd6 {[%emt 0:00:40]} 20. Kg2 {[%emt 0:00:09]} Nd7 {[%emt 0:01:03]} 21. Rxe8+ {[%emt 0:02:32]} Rxe8 {[%emt 0:00:01]} 22. Rh1 {[%emt 0:00:02]} Nf8 {[%emt 0:00:57]} 23. Qa6 {[%emt 0:01:57]} Re7 {[%emt 0:00:39]} 24. Nd1 {[%emt 0:00:11]} Qg6 {[%emt 0:00:37]} 25. Ne3 {[%emt 0:01:41]} Rxe3 {[%emt 0:00:51]} 26. fxe3 $11 {[%emt 0:00:01][%mdl 4096] Endgame KQR-KQN. Black is on the road to losing.} Qc2+ {[%emt 0:00:01]} 27. Kg1 {[%emt 0:00:01]} Qc1+ {[%emt 0:00:02]} 28. Qf1 $1 {[%emt 0:00:14]} Qxe3+ {[%emt 0:00:01]} 29. Qf2 {[%emt 0:00:04]} Qe6 {[%emt 0:00:01]} 30. Kg2 $36 {[%emt 0:00:20][%mdl 2048] White is in control.} Qg6 {[%emt 0:00:07]} 31. Rc1 {[%emt 0:00:30]} Ne6 {[%emt 0:00:02]} (31... h5 $16 32. Qc2 Qe6) 32. Qe3 {[%emt 0:00:12]} Qf6 {[%emt 0:03:45]} (32... Kf8 $16 {might work better.} 33. Kh2 Qh5+ 34. Kg2 Qg6) 33. Qe5 $18 {[%emt 0:00:10]} (33. Rxc6 $6 Nf4+ 34. gxf4 Qxc6 $14) 33... Qg6 {[%emt 0:00:01] [#]} 34. Kf2 $1 {[%emt 0:01:23]} ({Don't do} 34. Rxc6 $6 Nf4+ 35. gxf4 Qxc6 $16) 34... Qd3 {[%emt 0:03:08] Strongly threatening ...Qd2+.} 35. Rxc6 {[%emt 0:03:11]} Qd2+ {[%emt 0:00:02] [#]} 36. Kf1 $1 {[%emt 0:00:59] Rc8+ is the strong threat.} Qd1+ {[%emt 0:06:20]} 37. Kg2 {[%emt 0:00:07]} Qd2+ $2 {[%emt 0:00:20]} (37... Kh7 38. Qxd5 Qd2+ 39. Kh3 h5 40. Qe4+ Kg7 41. Qe5+ Kg6 42. Qe4+ Kg7 43. Qe5+ Kg6 44. Rxe6+ fxe6 45. Qxe6+ Kg7 46. Qe7+ Kh6 47. Qf6+ (47. Qxa7 Qxb2 48. Qa6+ Kg7 $16) 47... Kh7 48. Qf7+ Kh6 49. Qf8+ (49. Qxa7 Qxb2 50. Qa6+ Kg7 $16) 49... Kh7 50. Qf7+ Kh6 51. Qf8+ (51. Qxa7 Qxb2 52. Qa6+ Kg7 $16) 51... Kh7 52. Qf7+) 38. Kh3 {[%emt 0:00:22] Rc8+ would kill now.} Ng7 {[%emt 0:02:27]} 39. Qxd5 {[%emt 0:02:16] White wants to mate with Rc8+.} Qf2 {[%emt 0:04:52]} 40. Rc8+ {[%emt 0:01:20] White mates.} Kh7 {[%emt 0:00:01]} 41. Qxf7 {[%emt 0:00:02]} g4+ {[%emt 0:00:47]} 42. Kxg4 {[%emt 0:01:02] Weighted Error Value: White=0.04 (flawless) /Black=0.43} 1-0

[Event "Super United Croatia GCT Rapid 2022"]
[Site "Zagreb"]
[Date "2022.07.20"]
[Round "3.4"]
[White "Dominguez Perez, Leinier"]
[Black "Saric, Ivan"]
[Result "1/2-1/2"]
[ECO "B90"]
[WhiteElo "2754"]
[BlackElo "2680"]
[Annotator "TA"]
[PlyCount "80"]
[EventDate "2022.07.20"]
[EventType "tourn"]
[EventCountry "CRO"]
[SourceTitle "playchess.com"]
[Source "ChessBase"]
[SourceQuality "1"]
[TimeControl "1500+10"]

{[%evp 23,80,20,25,20,22,11,15,9,1,12,16,17,12,7,17,21,23,27,10,0,0,0,0,0,0,8,9,2,10,4,2,1,2,0,0,0,0,0,0,0,0,0,0,0,0,0,0,0,0,0,0,0,0,0,0,0,0,0,0]} 1. e4 {[%emt 0:00:02]} c5 {[%emt 0:00:01]} 2. Nf3 {[%emt 0:00:02]} d6 {[%emt 0:00:00]} 3. d4 {[%emt 0:00:02]} cxd4 {[%emt 0:00:01]} 4. Nxd4 {[%emt 0:00:02]} Nf6 {[%emt 0:00:01]} 5. Nc3 {[%emt 0:00:02]} a6 {[%emt 0:00:01]} 6. Be3 {[%emt 0:00:02]} e5 {[%emt 0:00:06]} 7. Nb3 {[%emt 0:00:02]} Be7 {[%emt 0:00:14]} 8. f3 {[%emt 0:00:04]} Be6 {[%emt 0:00:02]} 9. Qd2 {[%emt 0:00:02]} Nbd7 {[%emt 0:00:10]} 10. g4 {[%emt 0:00:07][%cal Bg2g4,Bg4g5][%mdl 32]} O-O {[%emt 0:00:02]} 11. g5 {[%emt 0:00:14]} Nh5 {[%emt 0:00:02]} 12. O-O-O {[%emt 0:00:03]} b5 {[%emt 0:00:05] 12...Qc7 is not played anymore.} 13. Kb1 {[%emt 0:00:13] B90: Sicilian Najdorf: Unusual White 6th moves, 6 Be3 Ng4 and 6 Be3 e5.} Nb6 {[%emt 0:00:24]} 14. Na5 {[%emt 0:00:02]} Rc8 {[%emt 0:00:05] Prevents Nc6.} 15. Nd5 {[%emt 0:00:03] is the new trend.} ({Much weaker is} 15. Nb7 Qc7 16. Na5 (16. Nxd6 $2 Rcd8 $19) 16... Nf4 17. Bxf4 exf4 $17) 15... Nxd5 {[%emt 0:00:12]} 16. exd5 {[%emt 0:00:02]} Bxd5 {[%emt 0:00:52]} 17. Qxd5 {[%emt 0:00:02]} Qxa5 {[%emt 0:00:02]} 18. c4 {[%emt 0:00:03]} Nf4 {[%emt 0:00:39]} 19. Bxf4 {[%emt 0:00:02]} exf4 {[%emt 0:00:01]} 20. h4 {[%emt 0:00:03]} Qa4 {[%emt 0:02:17]} 21. Bd3 {[%emt 0:00:18] The position is equal.} bxc4 {[%emt 0:00:52]} 22. Qe4 {[%emt 0:00:06][%csl Gd3,LRe7,LRf4,LRh7][%cal Re4h7] [#]} g6 {[%emt 0:00:07][%cal Od6d5] And now ...d5! would win.} 23. Bc2 {[%emt 0:00:03]} Qe8 {[%emt 0:00:28]} 24. Rde1 {[%emt 0:00:17]} Rc7 {[%emt 0:00:03] Strongly threatening ...Qb5.} 25. h5 $1 {[%emt 0:00:25] hxg6 is the strong threat.} d5 {[%emt 0:09:26]} 26. Qe5 {[%emt 0:01:37]} Qc6 {[%emt 0:05:26]} 27. hxg6 $1 {[%emt 0:07:18]} fxg6 {[%emt 0:00:01] [#]} 28. Rxh7 $146 {[%emt 0:03:16]} ({Predecessor:} 28. Rh6 Qd6 29. Bxg6 Qxe5 30. Bxh7+ Kg7 31. Rxe5 Bxg5 32. Rh2 Bf6 33. Rxd5 {½-½ (33) Ganguly,S (2609)-Yilmaz,M (2626) Havana 2022}) 28... Kxh7 {[%emt 0:00:18]} 29. Ba4 {[%emt 0:01:06]} Qxa4 {[%emt 0:00:54]} 30. Qxc7 {[%emt 0:00:02] Chess con chili.} Rf7 {[%emt 0:01:11][%cal Oh7g8]} 31. Rh1+ {[%emt 0:00:33]} Kg8 {[%emt 0:00:37] Threatens to win with ...Bf8.} 32. Qe5 {[%emt 0:00:03][%csl Ge5][%cal Rh1h8]} Rh7 {[%emt 0:03:40] Prevents Rh8+.} 33. Qxd5+ {[%emt 0:00:03]} Kg7 {[%emt 0:00:54]} 34. Qd4+ {[%emt 0:02:14]} Kg8 {[%emt 0:00:05]} 35. Qd5+ {[%emt 0:00:06]} Kg7 {[%emt 0:00:03]} 36. Qe5+ {[%emt 0:00:29]} Kf8 {[%emt 0:00:46]} 37. Qb8+ {[%emt 0:01:01]} Kg7 {[%emt 0:00:01][%cal Rh7h1]} 38. Qe5+ {[%emt 0:00:15]} Kf8 {[%emt 0:00:11]} 39. Qb8+ {[%emt 0:00:01]} Kg7 {[%emt 0:00:01][%cal Rh7h1]} 40. Qe5+ {[%emt 0:00:03]} Kf8 {[%emt 0:00:02] An even fight not without its subleties.  Weighted Error Value: White=0.01 (flawless) /Black=0.01 (flawless)} 1/2-1/2

[Event "Super United Croatia GCT Rapid 2022"]
[Site "Zagreb"]
[Date "2022.07.20"]
[Round "3.5"]
[White "So, Wesley"]
[Black "Van Foreest, Jorden"]
[Result "1-0"]
[ECO "C54"]
[WhiteElo "2773"]
[BlackElo "2678"]
[Annotator "TA"]
[PlyCount "127"]
[EventDate "2022.07.20"]
[EventType "tourn"]
[EventCountry "CRO"]
[SourceTitle "playchess.com"]
[Source "ChessBase"]
[SourceQuality "1"]
[TimeControl "1500+10"]

{[%evp 11,127,13,16,18,28,22,18,19,27,19,27,0,13,6,8,16,12,13,21,25,31,32,36,30,52,29,38,36,45,31,42,14,22,6,4,0,20,23,35,32,22,19,51,25,24,10,11,0,8,0,16,0,0,0,0,0,0,0,11,7,8,25,29,29,29,7,9,15,87,87,88,88,122,122,151,59,62,49,70,20,19,2,45,12,18,0,0,-28,-33,-55,-27,-27,0,0,0,0,0,0,0,0,0,0,0,0,0,0,0,0,0,0,0,0,12838,12839,12841,12840,12847,12847]} 1. e4 {[%emt 0:00:05]} e5 {[%emt 0:00:03]} 2. Nf3 {[%emt 0:00:05]} Nc6 {[%emt 0:00:03]} 3. Bc4 {[%emt 0:00:04]} Bc5 {[%emt 0:00:08]} 4. O-O {[%emt 0:00:11]} Nf6 {[%emt 0:00:08]} 5. d3 {[%emt 0:00:04]} d6 {[%emt 0:00:13]} 6. c3 {[%emt 0:00:04]} a6 {[%emt 0:00:13]} 7. Re1 {[%emt 0:00:10] C54: Giuoco Piano: 4 c3 Nf6, main lines with 5 d4 and 5 d3.} Ba7 {[%emt 0:00:31]} 8. a4 {[%emt 0:00:09]} h6 {[%emt 0:00:20]} 9. Nbd2 {[%emt 0:00:27] The position is equal.} O-O {[%emt 0:00:06]} 10. h3 {[%emt 0:00:11]} Re8 {[%emt 0:00:05]} 11. Qc2 $5 {[%emt 0:00:09][%mdl 4] A promising side line.} Be6 {[%emt 0:00:12]} 12. Bxe6 {[%emt 0:00:06]} Rxe6 {[%emt 0:00:05]} 13. b4 {[%emt 0:00:04]} Qd7 {[%emt 0:00:54]} 14. Rb1 {[%emt 0:00:06]} Ne7 {[%emt 0:01:28]} 15. Nf1 {[%emt 0:08:19][%cal Bd2f1,Bf1g3,Bg3f5][%mdl 32]} Ng6 {[%emt 0:01:24]} 16. Ng3 {[%emt 0:00:15]} Ree8 {[%emt 0:01:11]} 17. c4 {[%emt 0:01:08]} (17. Nf5 {seems wilder.} d5 18. c4 c6 19. Bd2) 17... c6 {[%emt 0:01:56] [#]} 18. c5 $146 {[%emt 0:01:13]} ({Predecessor:} 18. Bd2 Rad8 19. Nf5 Ne7 20. Ng3 Ng6 21. Rbd1 d5 22. Bc3 Bb8 23. c5 Bc7 24. Nf5 {1-0 (69) Leko,P (2663)-Anand,V (2753) chess24.com INT 2020}) 18... Rad8 {[%emt 0:00:31]} 19. Be3 {[%emt 0:00:29]} d5 {[%emt 0:00:50]} 20. Nf5 {[%emt 0:02:58]} Bb8 {[%emt 0:00:57]} 21. Rbd1 {[%emt 0:00:12]} Ne7 {[%emt 0:00:45]} 22. Ng3 {[%emt 0:02:05]} Ng6 {[%emt 0:00:09]} 23. Nf5 {[%emt 0:02:16]} Ne7 {[%emt 0:00:06]} 24. N3h4 {[%emt 0:00:37]} Nxf5 {[%emt 0:00:35]} 25. Nxf5 {[%emt 0:00:02]} Kh7 {[%emt 0:00:33]} 26. Ng3 {[%emt 0:00:23]} Kg8 {[%emt 0:00:29]} 27. f3 {[%emt 0:00:18]} Bc7 {[%emt 0:00:56]} 28. Qf2 {[%emt 0:00:33]} Kh7 {[%emt 0:01:39]} 29. Nf5 {[%emt 0:00:25]} Ng8 {[%emt 0:01:21]} 30. d4 {[%emt 0:00:24]} Ne7 {[%emt 0:00:11]} 31. Nd6 {[%emt 0:02:53]} Bxd6 {[%emt 0:00:29]} 32. cxd6 {[%emt 0:00:01]} exd4 {[%emt 0:01:55]} 33. Bf4 {[%emt 0:00:15]} Ng6 {[%emt 0:00:10]} 34. Bg3 {[%emt 0:00:04] next exd5 is good for White.} dxe4 {[%emt 0:01:03]} 35. Rxe4 {[%emt 0:00:02]} Rxe4 {[%emt 0:01:26]} 36. fxe4 {[%emt 0:00:01]} Re8 {[%emt 0:00:23] Against e5} 37. Qxd4 {[%emt 0:00:38]} f6 {[%emt 0:00:02] Inhibits e5.} 38. b5 {[%emt 0:00:25]} axb5 {[%emt 0:00:24]} 39. axb5 {[%emt 0:00:01]} Ne5 {[%emt 0:00:15] [#]} (39... cxb5 $11 40. Rc1 Qe6) 40. bxc6 $1 $16 {[%emt 0:00:11]} bxc6 {[%emt 0:00:13]} 41. Qb6 {[%emt 0:00:26]} Ng6 {[%emt 0:00:37]} 42. Qc7 {[%emt 0:00:32]} Nf8 {[%emt 0:00:02] [#]} 43. Rb1 {[%emt 0:00:31]} ({Better is} 43. Ra1 $1 $16) 43... Rc8 $1 $14 {[%emt 0:00:39]} 44. Qa5 {[%emt 0:00:23] 0x0.00200f5b6b64dp-1022s more active pieces. The black rooks are badly placed.} c5 $1 {[%emt 0:01:42]} 45. Qa6 {[%emt 0:00:01]} (45. Qa2 $14) 45... Qe6 $1 $11 {[%emt 0:02:07]} 46. Rb7 {[%emt 0:00:27] aiming for Re7.} Nd7 {[%emt 0:00:05]} 47. Qa7 {[%emt 0:00:16]} (47. Ra7 $5 {[%cal Ra6c8]} Rf8 48. Qb7 $16) 47... Rd8 {[%emt 0:00:03]} 48. Qa5 {[%emt 0:00:32]} Qxe4 {[%emt 0:00:43]} 49. Ra7 {[%emt 0:00:04] [#]} Rb8 {[%emt 0:00:46] ( -> ...Rb1+)} 50. Qd2 {[%emt 0:00:20]} ({Avoid the trap} 50. Rxd7 $2 Rb1+ 51. Be1 Rxe1+ 52. Qxe1 Qxe1+ $19) 50... Ne5 {[%emt 0:00:20]} (50... Rb3 $5 {[%cal Rb3g3]} 51. Qf4 Qg6 $15) 51. Re7 {[%emt 0:00:28] Strongly threatening Bxe5.} Rb3 {[%emt 0:01:27]} (51... Rd8 $5 {[%cal Rc5c4]}) 52. Bxe5 {[%emt 0:01:07]} fxe5 {[%emt 0:00:38][%mdl 4096] Endgame KQR-KQR} 53. d7 {[%emt 0:00:00]} Rd3 {[%emt 0:00:11]} 54. d8=Q {[%emt 0:00:02]} Rxd8 {[%emt 0:00:02]} 55. Qxd8 {[%emt 0:00:01]} Qe3+ $1 {[%emt 0:00:01]} 56. Kf1 $1 {[%emt 0:00:01]} Qf4+ {[%emt 0:00:05]} 57. Ke2 {[%emt 0:00:06]} Qe4+ {[%emt 0:00:01]} 58. Kd2 {[%emt 0:00:11]} Qf4+ {[%emt 0:00:34]} 59. Kc3 {[%emt 0:01:03]} Qc1+ {[%emt 0:00:03]} 60. Kb3 {[%emt 0:00:01] Intending Qd3+ and mate.} Qb1+ {[%emt 0:00:02]} 61. Kc4 {[%emt 0:00:02]} Qc2+ {[%emt 0:00:37][%mdl 8192]} (61... Qb4+ $11 62. Kd3 Qb1+ 63. Ke3 Qe1+ 64. Kf3 Qf1+ 65. Ke4 Qf4+ 66. Kd3 Qf1+ 67. Kc2 (67. Kc3 Qc1+ 68. Kb3 Qb1+ 69. Ka3 Qa1+ 70. Kb3 Qb1+ $11) 67... Qc4+ 68. Kd1 Qf1+ 69. Kd2 Qf4+ 70. Kd3 Qf1+ 71. Ke4 (71. Kc3 Qc1+ 72. Kb3 Qb1+ 73. Kc4 Qb4+ 74. Kd3 Qb1+ 75. Ke3 Qe1+ 76. Kf3 Qf1+ 77. Ke4 Qf4+ 78. Kd3 $11) 71... Qf4+ 72. Kd3) 62. Kb5 $18 {[%emt 0:00:01] White is clearly winning.} c4 {[%emt 0:00:11]} 63. Qc7 {[%emt 0:00:27]} Qxg2 {[%emt 0:00:11]} 64. Qxe5 {[%emt 0:00:10] Weighted Error Value: White=0.09 (flawless) /Black=0.08 (flawless)} 1-0